bitfinex-derivatives/quotes_ETHF0:USTF0_20241005
["timestamp","ask_amount","ask_price","bid_price","bid_amount"]
[1728161102745,3.6175,2397.1,2397.0,0.53271553]
[1728161102945,3.2078,2397.1,2397.0,1.68977553]
[1728161103153,3.2078,2397.1,2397.0,2.78434982]
[1728161103453,3.2078,2397.1,2397.0,2.45058982]
[1728161103850,3.54155,2397.1,2397.0,2.45058982]
[1728161105859,3.54155,2397.1,2397.0,2.45067517]
[1728161106046,3.54155,2397.1,2397.0,1.91787429]
[1728161106249,3.54155,2397.1,2397.0,2.45067507]
[1728161107057,0.33375,2397.1,2397.0,2.45067507]
[1728161109459,0.33375,2397.1,2397.0,1.35610078]
[1728161109645,3.6344,2397.2,2397.0,1.35610078]
[1728161109851,3.96814,2397.2,2397.1,0.53280078]
[1728161111261,8.14014,2397.2,2397.1,0.53280078]
[1728161111453,0.33378,2396.9,2396.7,1.09457429]
[1728161111764,6.29879,2396.8,2396.7,1.09457429]
[1728161112058,6.29879,2396.8,2396.7,1.62732942]
[1728161112453,10.47079,2396.8,2396.7,0.53275513]
[1728161112760,0.33382,2396.6,2396.5,1.09457429]
[1728161113062,0.33383,2396.5,2396.4,1.51227429]
[1728161113264,3.54163,2396.5,2396.4,2.04492646]
[1728161113460,3.6322,2396.5,2396.4,1.96107646]
[1728161113661,0.893,2396.7,2396.5,0.33382]
[1728161113855,1.3174,2396.7,2396.6,0.53265217]
[1728161114166,1.3174,2396.7,2396.6,0.93455217]
[1728161114361,5.824,2396.7,2396.6,0.93455217]
[1728161115974,5.4902,2396.7,2396.4,1.09469722]
[1728161116259,3.2078,2396.5,2396.3,1.09469722]
[1728161116462,0.33386,2396.3,2396.2,1.09469722]
[1728161116654,0.33386,2396.3,2396.2,0.53245772]
[1728161116853,0.72846,2396.3,2396.2,0.53245772]
[1728161118158,0.72846,2396.3,2396.1,3.27598017]
[1728161118964,0.33387,2396.2,2396.1,3.27598017]
[1728161119164,0.3946,2396.3,2396.1,3.27598017]
[1728161119165,0.72847,2396.3,2396.1,3.27598017]
[1728161119358,0.3946,2396.3,2396.1,3.80809616]
[1728161119665,0.72847,2396.3,2396.1,3.27598017]
[1728161119864,3.2078,2396.2,2396.1,3.27598017]
[1728161120167,3.54167,2396.2,2396.1,3.27598017]
[1728161120767,3.54167,2396.2,2396.0,0.3958]
[1728161123469,0.33389,2396.1,2396.0,0.3958]
[1728161123880,1.5,2396.1,2395.7,1.42863722]
[1728161124172,1.15461,2396.0,2395.8,0.53142171]
[1728161124370,1.54651,2396.0,2395.7,1.16744]
[1728161128267,1.54651,2396.0,2395.7,0.8335]
[1728161128478,1.54651,2396.0,2395.7,1.16744]
[1728161129369,1.2126,2396.0,2395.7,2.3335]
[1728161129565,1.2126,2396.0,2395.8,0.33392]
[1728161130573,3.54169,2396.1,2395.9,6.22023459]
[1728161130768,3.54169,2396.1,2396.0,0.3924]
[1728161130967,3.54169,2396.1,2396.0,0.808]
[1728161140094,0.3339,2396.0,2395.9,4.72023459]
[1728161140294,1.5724,2396.0,2395.9,4.72023459]
[1728161140787,1.2385,2396.0,2395.9,4.72023459]
[1728161142296,1.2385,2396.0,2395.9,5.05415459]
[1728161144303,1.2385,2396.0,2395.9,4.72023459]
[1728161145195,1.5724,2396.0,2395.9,4.72023459]
[1728161147701,5.746,2396.0,2395.9,4.72023459]
[1728161147998,5.746,2396.0,2395.7,0.4282]
[1728161147999,0.33393,2395.8,2395.7,0.4282]
[1728161148905,1.5,2395.9,2395.6,0.4091]
[1728161148906,0.33394,2395.7,2395.6,0.4091]
[1728161149105,2.23674,2395.7,2395.6,0.4091]
[1728161151502,1.9028,2395.7,2395.6,0.74306]
[1728161152402,2.23674,2395.7,2395.6,0.4091]
[1728161153899,2.23674,2395.7,2395.6,0.74306]
[1728161154305,2.23674,2395.7,2395.6,0.4091]
[1728161157100,1.9028,2395.7,2395.6,0.74306]
[1728161158402,2.23674,2395.7,2395.6,0.74306]
[1728161160300,2.23674,2395.7,2395.6,0.4091]
[1728161160613,2.23674,2395.7,2395.5,0.4095]
[1728161160614,0.33396,2395.6,2395.5,0.4095]
[1728161160813,0.74826,2395.6,2395.5,0.4095]
[1728161164606,3.6221,2395.6,2395.3,0.4136]
[1728161164811,0.33399,2395.4,2395.3,0.4136]
[1728161165009,1.8947,2395.5,2395.4,0.53234648]
[1728161165209,2.22868,2395.5,2395.3,1.27993648]
[1728161165415,2.22868,2395.5,2395.4,0.53234648]
[1728161166517,0.3947,2395.5,2395.4,0.86633648]
[1728161166716,5.45607,2395.6,2395.5,0.33397]
[1728161167111,5.45607,2395.6,2395.4,0.33398]
[1728161167511,5.45607,2395.6,2395.5,0.4059]
[1728161168112,2.24827,2395.6,2395.5,0.4059]
[1728161171206,5.45607,2395.6,2395.5,0.4059]
[1728161172013,2.24827,2395.6,2395.5,0.4059]
[1728161172528,5.45607,2395.6,2395.5,0.4059]
[1728161173023,2.24827,2395.6,2395.5,0.4059]
[1728161173321,5.45607,2395.6,2395.5,0.4059]
[1728161180225,2.24827,2395.6,2395.5,0.4059]
[1728161180412,5.45607,2395.6,2395.5,0.4059]
[1728161181020,0.334,2395.3,2395.2,1.09469722]
[1728161181225,0.83494,2395.5,2395.0,0.33404]
[1728161181226,0.33402,2395.2,2395.0,0.33404]
[1728161181723,0.33403,2395.1,2394.9,1.85234722]
[1728161182018,0.33403,2395.1,2394.9,0.75765]
[1728161182213,0.4001,2395.1,2395.0,0.33404]
[1728161182417,0.73413,2395.1,2394.9,0.4236]
[1728161182623,0.4001,2395.1,2394.9,0.4236]
[1728161182816,0.4001,2395.1,2394.9,0.75765]
[1728161185824,1.5,2395.0,2394.9,0.75765]
[1728161187124,1.5,2395.0,2394.9,0.4236]
[1728161188329,1.5,2395.0,2394.9,0.75765]
[1728161189423,1.5,2395.0,2394.9,0.4236]
[1728161189623,5.04184,2395.0,2394.9,0.4236]
[1728161191723,4.7078,2395.0,2394.9,0.4236]
[1728161191930,5.04184,2395.0,2394.9,0.4236]
[1728161197535,1.83404,2395.0,2394.9,0.4236]
[1728161201345,1.5,2395.0,2394.9,0.75765]
[1728161206149,1.83404,2395.0,2394.9,0.4236]
[1728161206349,2.23394,2395.0,2394.9,0.75765]
[1728161206549,1.8999,2395.0,2394.9,0.75765]
[1728161215151,1.8999,2395.0,2394.9,0.33405]
[1728161215854,1.8999,2395.0,2394.9,0.86622414]
[1728161216555,1.8999,2395.0,2394.9,0.33405]
[1728161216757,1.8999,2395.0,2394.9,0.8662672]
[1728161217958,1.8999,2395.0,2394.7,1.09469722]
[1728161218254,1.8999,2395.0,2394.6,1.64174663]
[1728161218255,3.2078,2394.8,2394.6,0.395]
[1728161218447,2.23858,2394.7,2394.6,0.395]
[1728161218642,2.65058,2394.7,2394.6,0.395]
[1728161218847,2.65058,2394.7,2394.6,0.92736239]
[1728161219145,2.65058,2394.7,2394.6,0.53236239]
[1728161219349,2.3165,2394.7,2394.6,0.53236239]
[1728161220547,2.65058,2394.7,2394.6,0.53236239]
[1728161221056,1.912,2394.7,2394.6,0.3341]
[1728161221253,1.5,2394.7,2394.6,0.3341]
[1728161221451,1.5,2394.7,2394.6,0.86656904]
[1728161221860,4.7078,2394.8,2394.7,0.33408]
[1728161222253,4.7078,2394.8,2394.7,0.86656]
[1728161222454,4.7078,2394.8,2394.7,0.33408]
[1728161223162,4.7078,2394.8,2394.7,0.86661741]
[1728161223364,4.7078,2394.8,2394.7,0.86658174]
[1728161223760,4.7078,2394.8,2394.5,1.89579722]
[1728161223761,5.04187,2394.8,2394.5,1.89579722]
[1728161224066,1.5,2394.6,2394.4,1.48969722]
[1728161224264,1.83411,2394.5,2394.4,1.48969722]
[1728161224459,2.67301,2394.5,2394.4,0.395]
[1728161224682,2.67301,2394.5,2394.4,0.53255789]
[1728161224863,0.33414,2394.3,2394.1,4.30249722]
[1728161225058,2.24235,2394.2,2394.1,4.30249722]
[1728161225270,2.24235,2394.2,2394.1,3.74048984]
[1728161225470,2.24235,2394.2,2394.1,8.44551929]
[1728161225659,1.9082,2394.2,2394.1,8.44551929]
[1728161226270,1.9082,2394.2,2394.1,8.77968929]
[1728161226461,2.24235,2394.2,2394.1,4.70502945]
[1728161227968,1.9082,2394.2,2394.1,4.70502945]
[1728161228364,2.24235,2394.2,2394.1,4.70502945]
[1728161228572,1.9082,2394.2,2394.1,4.70502945]
[1728161228780,2.24235,2394.2,2394.1,4.70502945]
[1728161230271,2.24235,2394.2,2393.9,1.13529]
[1728161230470,1.5,2394.0,2393.9,1.13529]
[1728161230869,1.5,2394.0,2393.9,5.52471587]
[1728161231065,1.5,2394.0,2393.9,4.38942587]
[1728161231271,1.83418,2394.0,2393.9,4.38942587]
[1728161231773,1.5,2394.0,2393.9,4.72361587]
[1728161232879,1.5,2394.0,2393.9,4.38942587]
[1728161235078,3.2078,2394.1,2393.9,4.38942587]
[1728161235372,3.2078,2394.1,2394.0,1.17708]
[1728161238979,3.54197,2394.1,2394.0,0.8429]
[1728161239575,3.2078,2394.1,2394.0,1.17708]
[1728161240784,2.24236,2394.2,2394.0,1.17708]
[1728161240980,2.24236,2394.2,2394.0,0.4152]
[1728161240981,3.54197,2394.1,2394.0,0.4152]
[1728161241584,3.54197,2394.1,2394.0,0.74938]
[1728161244377,0.33417,2394.1,2394.0,0.74938]
[1728161246183,0.33417,2394.1,2394.0,0.4152]
[1728161246484,0.33417,2394.1,2394.0,0.74938]
[1728161247484,2.24236,2394.2,2394.0,0.74938]
[1728161248079,0.33417,2394.1,2394.0,0.74938]
[1728161248487,0.33417,2394.1,2394.0,0.4152]
[1728161248677,1.9082,2394.2,2393.8,0.7559]
[1728161248879,0.33419,2393.9,2393.8,0.75591]
[1728161249176,0.33419,2393.9,2393.8,0.4217]
[1728161249392,0.74399,2393.9,2393.8,0.4217]
[1728161250693,0.4098,2393.9,2393.8,0.75591]
[1728161251585,4.0532,2394.0,2393.9,0.33419]
[1728161251785,5.88738,2394.0,2393.9,0.33419]
[1728161252290,5.5532,2394.0,2393.9,0.33419]
[1728161253281,5.1296,2394.0,2393.9,0.33419]
[1728161254182,1.9218,2394.0,2393.9,0.33419]
[1728161254383,1.9218,2394.0,2393.8,0.4217]
[1728161254581,2.25599,2394.0,2393.9,0.33419]
[1728161254987,1.9218,2394.0,2393.9,0.33419]
[1728161255381,1.5,2394.0,2393.9,0.33419]
[1728161257187,1.83418,2394.0,2393.9,0.33419]
[1728161259889,1.83418,2394.0,2393.9,0.76019]
[1728161263995,3.6135,2394.1,2394.0,0.33418]
[1728161264195,3.54197,2394.1,2394.0,0.73908]
[1728161266194,3.2078,2394.1,2394.0,0.73908]
[1728161266399,4.7078,2394.1,2394.0,0.73908]
[1728161269199,4.7078,2394.1,2394.0,1.27196263]
[1728161270303,4.7078,2394.1,2394.0,1.27196266]
[1728161274006,4.7078,2394.1,2394.0,0.73908]
[1728161274200,4.7078,2394.1,2394.0,1.27229785]
[1728161274407,4.7078,2394.1,2394.0,2.36699507]
[1728161276605,1.5,2394.1,2394.0,2.36699507]
[1728161277904,1.5,2394.1,2394.0,2.36703198]
[1728161281009,1.5,2394.1,2394.0,2.36702283]
[1728161283910,1.5,2394.1,2394.0,1.83377722]
[1728161284305,1.5,2394.1,2394.0,2.36702826]
[1728161284810,1.5,2394.1,2394.0,2.36702412]
[1728161288216,1.5,2394.1,2394.0,1.83377722]
[1728161288416,1.5,2394.1,2394.0,2.36701355]
[1728161289213,0.3885,2394.2,2394.0,2.03283355]
[1728161289417,0.3885,2394.2,2394.1,0.86740633]
[1728161289713,0.3885,2394.2,2394.1,1.27290633]
[1728161290416,0.72265,2394.2,2394.1,0.93873633]
[1728161290717,0.3885,2394.2,2394.1,0.93873633]
[1728161290911,0.3885,2394.2,2394.1,1.27290633]
[1728161291412,0.72265,2394.2,2394.1,0.93873633]
[1728161291810,0.72265,2394.2,2394.1,0.93872257]
[1728161295421,0.72265,2394.2,2394.1,0.4055]
[1728161295622,0.72265,2394.2,2394.1,0.93871349]
[1728161297416,0.3885,2394.2,2394.1,1.27288349]
[1728161299012,0.3885,2394.2,2394.1,1.27288301]
[1728161299422,0.3885,2394.2,2394.1,0.93871301]
[1728161299613,0.72265,2394.2,2394.1,0.93871301]
[1728161302620,0.72265,2394.2,2394.1,0.4055]
[1728161302828,0.72265,2394.2,2394.1,0.93874413]
[1728161303223,0.3885,2394.2,2394.1,1.27291413]
[1728161303921,0.72265,2394.2,2394.1,0.53324413]
[1728161305124,10.89945,2394.2,2394.1,0.53324413]
[1728161305325,0.33419,2393.9,2393.8,1.09469722]
[1728161305629,0.33419,2393.9,2393.8,0.5333509]
[1728161305825,5.1053,2394.0,2393.8,0.5333509]
[1728161306028,0.4169,2393.9,2393.7,1.42890722]
[1728161306329,0.7511,2393.9,2393.8,0.53334793]
[1728161306532,0.7511,2393.9,2393.7,1.42890722]
[1728161306720,0.7511,2393.9,2393.8,0.53329019]
[1728161308625,4.9287,2393.9,2393.8,0.53329019]
[1728161308826,0.33424,2393.6,2393.5,1.09469722]
[1728161309026,0.33424,2393.6,2393.5,1.62792245]
[1728161309227,0.33424,2393.6,2393.5,0.53322523]
[1728161309442,5.406,2393.6,2393.2,1.09469722]
[1728161309632,1.5,2393.3,2393.2,1.42897722]
[1728161310025,1.5,2393.3,2393.2,1.96208053]
[1728161310222,1.5,2393.3,2393.2,0.86739331]
[1728161310623,1.8881,2393.3,2393.2,0.53310331]
[1728161310832,1.8881,2393.3,2393.2,0.86739331]
[1728161311636,1.8881,2393.3,2393.2,0.53310331]
[1728161311832,1.8881,2393.3,2393.2,0.86739331]
[1728161312232,1.8881,2393.3,2393.2,0.53310331]
[1728161312427,1.8881,2393.3,2393.2,0.86739331]
[1728161312732,1.8881,2393.3,2393.1,0.7507]
[1728161313028,1.8881,2393.3,2393.1,0.4164]
[1728161313226,0.8216,2393.2,2392.9,1.93529722]
[1728161313427,0.8216,2393.2,2392.8,1.64174663]
[1728161313428,1.5,2393.1,2392.8,0.33434]
[1728161313634,1.5,2392.9,2392.7,4.70369722]
[1728161313834,1.5,2392.9,2392.7,3.609]
[1728161314039,1.83434,2392.9,2392.8,4.64850864]
[1728161315435,0.4108,2393.0,2392.8,4.98284864]
[1728161315631,1.5,2392.9,2392.8,4.98284864]
[1728161315832,1.5,2392.9,2392.6,0.4223]
[1728161315833,1.5,2392.9,2392.5,0.4012]
[1728161316028,0.4108,2393.0,2392.7,0.4137]
[1728161316234,3.2078,2393.1,2392.7,5.13498335]
[1728161316434,0.486,2393.2,2393.0,1.5]
[1728161316626,4.95825,2393.5,2393.3,0.33427]
[1728161316825,4.138,2393.5,2393.4,0.4008]
[1728161317027,1.83425,2393.5,2393.4,0.4008]
[1728161317438,1.83425,2393.5,2393.2,0.33429]
[1728161317439,0.33427,2393.4,2393.2,0.33429]
[1728161317636,0.33427,2393.4,2393.2,0.73509]
[1728161317831,0.33427,2393.4,2393.3,4.70802023]
[1728161319440,0.33429,2393.2,2393.1,0.4137]
[1728161321841,2.65738,2393.3,2393.1,0.748]
[1728161322036,2.65738,2393.3,2393.1,0.4137]
[1728161323542,2.65738,2393.3,2393.1,0.74801]
[1728161323841,2.65738,2393.3,2393.1,0.4137]
[1728161324338,2.3231,2393.3,2393.1,0.4137]
[1728161324636,2.3231,2393.3,2393.1,0.74801]
[1728161324840,0.33429,2393.2,2393.1,0.4137]
[1728161327147,0.33429,2393.2,2393.1,0.74801]
[1728161328351,2.3231,2393.3,2393.0,0.4074]
[1728161328352,0.33431,2393.1,2393.0,0.4074]
[1728161328647,0.3343,2393.2,2393.0,0.74172]
[1728161328941,2.3231,2393.3,2393.0,0.74172]
[1728161328942,0.33431,2393.1,2393.0,0.4074]
[1728161329643,1.83431,2393.1,2393.0,0.4074]
[1728161330136,0.33432,2393.0,2392.8,0.73934]
[1728161330339,1.5,2392.9,2392.8,0.73934]
[1728161331347,1.83433,2392.9,2392.8,0.73934]
[1728161331542,1.83433,2392.9,2392.8,0.405]
[1728161331747,1.9058,2392.9,2392.8,0.33435]
[1728161332449,1.9058,2392.9,2392.7,0.8014]
[1728161332651,1.9058,2392.9,2392.8,0.33435]
[1728161332852,1.5,2392.9,2392.8,0.33435]
[1728161335044,1.83433,2392.9,2392.8,0.33435]
[1728161335748,1.5,2392.9,2392.8,0.33435]
[1728161337245,1.83433,2392.9,2392.8,0.33435]
[1728161337849,1.5,2392.9,2392.8,0.33435]
[1728161338145,3.6938,2393.4,2392.8,5.6792]
[1728161338350,4.97364,2393.5,2393.4,0.33426]
[1728161338351,5.638,2393.5,2393.4,0.33426]
[1728161338546,1.5,2393.5,2393.4,0.33426]
[1728161339448,1.5,2393.5,2393.1,0.838]
[1728161339651,1.5,2393.5,2393.3,0.33427]
[1728161339847,1.5,2393.5,2393.1,0.838]
[1728161339848,1.5,2393.5,2393.4,0.33426]
[1728161340049,1.5,2393.5,2393.3,0.33427]
[1728161340249,1.5,2393.5,2393.3,0.76147]
[1728161340450,1.9,2393.6,2393.5,0.33425]
[1728161340949,1.9,2393.6,2393.5,0.75425]
[1728161341548,1.5,2393.6,2393.5,0.75425]
[1728161342055,1.5,2393.6,2393.5,0.42]
[1728161342056,1.83424,2393.6,2393.5,0.42]
[1728161342356,1.83424,2393.6,2393.4,5.09242251]
[1728161342548,1.5,2393.5,2393.4,5.09242251]
[1728161343751,1.9201,2393.5,2393.4,5.09242251]
[1728161344549,1.9201,2393.5,2393.4,5.42668251]
[1728161345255,2.25435,2393.5,2393.4,0.4204]
[1728161345452,2.25435,2393.5,2393.3,0.76147]
[1728161345453,2.65905,2393.5,2393.3,0.76147]
[1728161345653,0.4273,2393.4,2393.3,0.76147]
[1728161346049,3.2078,2393.7,2393.3,0.4272]
[1728161346253,0.4263,2393.9,2393.7,0.33422]
[1728161346453,1.9263,2393.9,2393.8,0.4297]
[1728161346651,1.9263,2393.9,2393.8,0.76391]
[1728161346964,1.9263,2393.9,2393.8,0.4297]
[1728161347167,5.1348,2394.0,2393.9,0.33419]
[1728161347462,4.7078,2394.0,2393.9,0.33419]
[1728161347662,4.7078,2394.0,2393.9,0.72399]
[1728161350562,3.2078,2394.0,2393.9,0.72399]
[1728161350858,4.7078,2394.0,2393.9,0.72399]
[1728161354261,3.2078,2394.0,2393.9,6.40079]
[1728161354483,0.486,2394.4,2394.3,0.33414]
[1728161354664,2.23151,2394.5,2394.3,0.33413]
[1728161354863,1.8974,2394.5,2394.3,0.33413]
[1728161355159,1.8974,2394.5,2394.4,0.4215]
[1728161355365,1.8974,2394.5,2394.4,0.75562]
[1728161355664,6.0734,2394.5,2394.4,0.4215]
[1728161356253,6.0734,2394.5,2394.4,0.75562]
[1728161356254,0.3974,2394.5,2394.4,0.75562]
[1728161356457,5.1039,2394.6,2394.4,0.4215]
[1728161356863,5.1039,2394.6,2394.4,0.75561]
[1728161357662,5.438,2394.6,2394.4,0.75561]
[1728161357864,0.33411,2394.5,2394.4,0.4215]
[1728161363670,1.83411,2394.5,2394.4,0.4215]
[1728161365467,5.676,2394.5,2394.0,0.4007]
[1728161365767,0.33417,2394.1,2394.0,0.8113]
[1728161366162,0.33417,2394.1,2393.6,4.174]
[1728161366163,1.5,2394.1,2393.6,4.174]
[1728161366365,1.5,2394.1,2393.3,11.90854663]
[1728161366366,1.8342,2393.9,2393.7,1.2268]
[1728161366666,1.8342,2393.9,2393.7,6.40228163]
[1728161366865,1.8342,2393.9,2393.7,1.56102]
[1728161367065,1.8342,2393.9,2393.8,4.73118338]
[1728161369672,1.5,2393.9,2393.8,4.73118338]
[1728161370065,1.5,2393.9,2393.8,5.06539338]
[1728161370267,0.33419,2394.0,2393.8,5.06539338]
[1728161371363,4.7078,2394.1,2393.8,6.23118338]
[1728161371364,3.2078,2394.1,2393.8,6.23118338]
[1728161371564,0.4087,2394.2,2394.1,0.33417]
[1728161371769,0.33415,2394.3,2394.1,0.33417]
[1728161372364,1.5,2394.4,2393.9,1.5]
[1728161372564,1.83413,2394.4,2394.2,0.33415]
[1728161373976,1.83413,2394.4,2394.3,0.33414]
[1728161373977,1.5,2394.4,2394.3,0.33414]
[1728161376280,0.33415,2394.3,2394.1,1.17696]
[1728161376480,0.73045,2394.3,2394.1,1.17696]
[1728161376686,0.3963,2394.3,2394.2,0.33415]
[1728161376981,0.3963,2394.3,2394.1,1.17696]
[1728161377175,0.73044,2394.3,2394.1,1.17696]
[1728161378073,0.3963,2394.3,2394.1,0.8428]
[1728161378272,1.5,2394.4,2394.1,0.8428]
[1728161378478,1.5,2394.4,2394.3,0.33414]
[1728161378882,1.5,2394.4,2393.9,0.3914]
[1728161379074,4.0079,2394.5,2394.0,0.33417]
[1728161379075,1.83416,2394.2,2394.0,0.33417]
[1728161379274,1.83415,2394.2,2394.0,4.78252748]
[1728161382274,0.3939,2394.1,2394.0,4.78252748]
[1728161383882,4.43511,2394.5,2394.0,4.78252748]
[1728161383883,1.5,2394.3,2394.0,4.44835748]
[1728161384077,1.83414,2394.3,2394.1,0.33416]
[1728161384380,0.74803,2394.4,2394.2,0.33414]
[1728161384585,0.74803,2394.4,2394.3,0.4031]
[1728161385279,5.43391,2394.5,2394.4,0.33412]
[1728161386683,5.0998,2394.5,2394.4,0.33412]
[1728161386879,5.0998,2394.5,2394.4,0.75632]
[1728161387185,5.43391,2394.5,2394.4,0.75632]
[1728161387383,5.43391,2394.5,2394.4,1.18082]
[1728161388078,5.43391,2394.5,2394.4,0.8467]
[1728161388777,5.04191,2394.5,2394.4,0.8467]
[1728161389783,3.2078,2394.5,2394.4,0.8467]
[1728161389990,3.2078,2394.5,2394.4,1.18082]
[1728161390189,3.2078,2394.5,2394.4,9.71385571]
[1728161392283,3.2078,2394.5,2394.4,10.24596817]
[1728161392782,3.2078,2394.8,2394.7,0.33407]
[1728161394698,3.54187,2394.8,2394.6,0.33409]
[1728161395185,3.54187,2394.8,2394.7,0.4099]
[1728161395686,3.54187,2394.8,2394.7,0.74398]
[1728161395687,3.2078,2394.8,2394.7,0.74398]
[1728161395885,3.54187,2394.8,2394.7,0.74398]
[1728161396087,3.54187,2394.8,2394.7,0.4099]
[1728161396288,4.7078,2394.8,2394.4,5.20373571]
[1728161396490,1.5,2394.7,2394.4,5.20373571]
[1728161396991,1.5,2394.7,2394.4,5.53785571]
[1728161396992,0.33411,2394.6,2394.4,5.53785571]
[1728161397292,0.33411,2394.5,2394.4,5.20373571]
[1728161397482,0.33411,2394.5,2394.4,5.73583374]
[1728161398098,0.33411,2394.5,2394.4,5.20373571]
[1728161398286,0.33411,2394.5,2394.4,5.73582659]
[1728161398485,5.543,2394.8,2394.4,6.60208016]
[1728161398486,0.3341,2394.6,2394.4,6.60208016]
[1728161398688,0.3341,2394.6,2394.4,6.06994659]
[1728161400600,0.3341,2394.6,2394.4,5.73582659]
[1728161400802,5.543,2394.8,2394.4,5.73582659]
[1728161401003,0.4098,2394.5,2394.4,5.73582659]
[1728161401194,0.4098,2394.5,2394.4,6.60208001]
[1728161402296,0.4098,2394.5,2394.4,6.26796001]
[1728161402497,0.4098,2394.5,2394.4,0.53209088]
[1728161402498,5.45171,2394.5,2394.4,0.53209088]
[1728161402703,10.46121,2394.5,2394.4,0.53209088]
[1728161402995,4.78521,2394.5,2394.4,0.53209088]
[1728161403400,4.78521,2394.5,2394.4,0.95049088]
[1728161405304,4.78521,2394.5,2394.4,0.4184]
[1728161405498,1.57741,2394.5,2394.4,0.4184]
[1728161408693,4.78521,2394.5,2394.4,0.4184]
[1728161410502,1.57741,2394.5,2394.4,0.4184]
[1728161411206,1.2433,2394.5,2394.2,0.72374]
[1728161411407,0.33414,2394.3,2394.2,0.72374]
[1728161411606,0.33414,2394.3,2394.2,1.2559987]
[1728161411810,0.33414,2394.3,2394.2,5.85897343]
[1728161412111,1.2433,2394.5,2394.2,5.85897343]
[1728161412304,0.33414,2394.4,2394.2,5.32671473]
[1728161415504,0.33414,2394.4,2394.2,4.99257473]
[1728161415705,3.2078,2394.5,2394.2,6.49257473]
[1728161415906,3.2078,2394.5,2394.4,0.33412]
[1728161416312,3.2078,2394.5,2394.4,1.14312]
[1728161417115,3.54191,2394.5,2394.4,1.14312]
[1728161417315,3.2078,2394.5,2394.4,1.14312]
[1728161421013,3.54191,2394.5,2394.4,1.14312]
[1728161422322,3.54191,2394.5,2394.4,0.809]
[1728161423121,3.54191,2394.5,2394.2,1.48429722]
[1728161423122,0.33414,2394.3,2394.2,1.48429722]
[1728161423325,0.33414,2394.3,2394.2,0.92204336]
[1728161423516,0.33414,2394.3,2394.2,4.88283928]
[1728161423816,0.33414,2394.3,2394.2,5.41530107]
[1728161425020,1.2348,2394.4,2394.2,5.41530107]
[1728161425223,1.56893,2394.4,2394.2,5.21698928]
[1728161426224,1.56893,2394.4,2394.3,0.53253091]
[1728161426726,1.56893,2394.4,2394.2,5.21698928]
[1728161427231,1.56893,2394.4,2394.3,0.53257884]
[1728161433629,1.56893,2394.4,2394.2,6.3116865]
[1728161433630,1.2348,2394.4,2394.2,6.3116865]
[1728161433836,0.33414,2394.3,2394.2,6.3116865]
[1728161434037,0.33414,2394.3,2394.2,6.84441716]
[1728161434842,9.21874,2394.3,2394.2,0.53273066]
[1728161435141,0.33417,2394.1,2394.0,1.52029722]
[1728161435440,0.33417,2394.1,2394.0,1.29263404]
[1728161435739,0.33417,2394.1,2394.0,2.38733126]
[1728161435939,0.33417,2394.1,2394.0,1.29263404]
[1728161438238,0.33417,2394.1,2394.0,0.95845404]
[1728161438445,1.83417,2394.1,2394.0,0.53285404]
[1728161439938,1.83417,2394.1,2393.9,0.33419]
[1728161440136,0.4022,2394.0,2393.9,0.33419]
[1728161440347,0.4022,2394.0,2393.9,0.86685369]
[1728161443745,0.4022,2394.0,2393.9,0.33419]
[1728161443940,0.4022,2394.0,2393.9,0.86687815]
[1728161444244,0.4022,2394.0,2393.9,0.33419]
[1728161444552,0.4022,2394.0,2393.9,0.86686157]
[1728161446847,0.4022,2394.0,2393.9,0.33419]
[1728161447344,0.4022,2394.0,2393.9,0.86677108]
[1728161449742,0.33417,2394.1,2393.9,0.86677108]
[1728161449943,0.33417,2394.1,2393.9,0.33419]
[1728161450649,0.33412,2394.4,2394.2,0.33414]
[1728161450846,0.33412,2394.5,2394.3,1.15143]
[1728161451546,0.33412,2394.4,2394.3,0.4275]
[1728161451753,0.33415,2394.2,2394.1,0.33416]
[1728161452047,0.33415,2394.2,2394.1,0.76166]
[1728161452448,0.33415,2394.2,2394.1,1.29418243]
[1728161452651,1.53815,2394.3,2394.1,1.29418243]
[1728161452850,1.53815,2394.3,2394.1,0.76166]
[1728161454245,1.204,2394.3,2394.1,0.4275]
[1728161454647,1.53815,2394.3,2394.1,0.76166]
[1728161458154,1.53815,2394.3,2394.0,0.8178]
[1728161458155,0.33418,2394.1,2393.9,0.33419]
[1728161458350,0.4094,2394.0,2393.9,0.72259]
[1728161458555,0.4094,2394.0,2393.9,1.25513224]
[1728161459956,0.33416,2394.2,2394.0,0.33417]
[1728161460260,0.73616,2394.2,2394.0,0.33417]
[1728161461052,0.402,2394.2,2393.9,0.3884]
[1728161461251,0.33417,2394.1,2393.9,0.3884]
[1728161461557,0.402,2394.2,2394.0,0.33418]
[1728161461758,0.73616,2394.2,2394.0,0.33418]
[1728161463862,0.73616,2394.2,2394.0,0.33417]
[1728161465161,0.402,2394.2,2393.9,0.3884]
[1728161465360,0.73616,2394.2,2394.0,0.86679416]
[1728161465563,0.73616,2394.2,2394.0,0.33417]
[1728161468161,0.73616,2394.2,2393.9,1.48309722]
[1728161468162,0.402,2394.2,2393.9,1.48309722]
[1728161468370,0.33417,2394.1,2394.0,0.53264021]
[1728161468671,0.33418,2394.1,2393.9,0.33419]
[1728161470373,0.33418,2394.1,2393.8,2.32709722]
[1728161470569,0.33417,2394.1,2394.0,0.33418]
[1728161472171,0.33417,2394.1,2393.8,2.32709722]
[1728161472372,0.33417,2394.1,2393.9,0.86691814]
[1728161472580,0.33417,2394.1,2393.9,0.33419]
[1728161473971,0.33417,2394.1,2394.0,0.53271222]
[1728161474270,1.902,2394.2,2393.8,2.66129722]